[Event "Early-Titled-Tuesday-Blitz-January-16-2024"]
[Site "Chess.com"]
[Date "2024.01.16"]
[Round "3"]
[White "SahibSinghKnight"]
[Black "Bauman_Guy"]
[Result "0-1"]
[WhiteElo "2684"]
[BlackElo "2918"]
[TimeControl "180+1"]
[EndTime "8:29:32 PST"]
[Termination "Bauman_Guy won by resignation"]

1. e4 {[%clk 0:02:55.9]} 1... c5 {[%clk 0:02:58.6]} 2. Nf3 {[%clk 0:02:54.7]}
2... d6 {[%clk 0:02:58.8]} 3. d4 {[%clk 0:02:54.9]} 3... Nf6 {[%clk 0:02:59.4]}
4. Nc3 {[%clk 0:02:53.9]} 4... cxd4 {[%clk 0:02:59.7]} 5. Nxd4 {[%clk
0:02:54.8]} 5... a6 {[%clk 0:03:00]} 6. Be3 {[%clk 0:02:52.3]} 6... e5 {[%clk
0:02:59.8]} 7. Nf3 {[%clk 0:02:52.3]} 7... Be7 {[%clk 0:02:59.8]} 8. Bc4 {[%clk
0:02:52]} 8... O-O {[%clk 0:02:59.5]} 9. O-O {[%clk 0:02:52.1]} 9... Nc6 {[%clk
0:02:59.8]} 10. Bb3 {[%clk 0:02:45.9]} 10... Na5 {[%clk 0:02:59]} 11. Re1 {[%clk
0:02:38.6]} 11... h6 {[%clk 0:02:56.9]} 12. Nd5 {[%clk 0:02:33.1]} 12... Nxb3
{[%clk 0:02:53.6]} 13. axb3 {[%clk 0:02:28.4]} 13... Nxd5 {[%clk 0:02:53.4]} 14.
Qxd5 {[%clk 0:02:28.8]} 14... Qc7 {[%clk 0:02:51.3]} 15. c4 {[%clk 0:02:27.2]}
15... Be6 {[%clk 0:02:51.1]} 16. Qd1 {[%clk 0:02:25.6]} 16... b5 {[%clk
0:02:49.5]} 17. Nd2 {[%clk 0:02:21.7]} 17... Rfb8 {[%clk 0:02:46.5]} 18. Qc2
{[%clk 0:02:19.1]} 18... Qb7 {[%clk 0:02:42.2]} 19. Ra2 {[%clk 0:02:07.5]} 19...
a5 {[%clk 0:02:21.7]} 20. Rea1 {[%clk 0:02:05.6]} 20... a4 {[%clk 0:02:22.1]}
21. bxa4 {[%clk 0:01:59.6]} 21... Rxa4 {[%clk 0:02:19.8]} 22. Rxa4 {[%clk
0:01:51.3]} 22... bxa4 {[%clk 0:02:20.7]} 23. Ra2 {[%clk 0:01:47.8]} 23... Qc6
{[%clk 0:02:18.5]} 24. Rxa4 {[%clk 0:01:27.1]} 24... Rxb2 {[%clk 0:02:14.3]} 25.
Qxb2 {[%clk 0:01:28]} 25... Qxa4 {[%clk 0:02:14.2]} 26. Qc1 {[%clk 0:01:27.3]}
26... Qb4 {[%clk 0:01:59.4]} 27. Qc2 {[%clk 0:01:15]} 27... Bg5 {[%clk
0:01:24.8]} 28. Bxg5 {[%clk 0:01:05.4]} 28... hxg5 {[%clk 0:01:25.7]} 29. h3
{[%clk 0:00:59.9]} 29... g4 {[%clk 0:01:18.3]} 30. hxg4 {[%clk 0:00:59.8]} 30...
Bxg4 {[%clk 0:01:18.3]} 31. Qd3 {[%clk 0:00:53.1]} 31... Be6 {[%clk 0:01:16]}
32. g3 {[%clk 0:00:44.9]} 32... Kf8 {[%clk 0:01:14.9]} 33. Kg2 {[%clk
0:00:43.2]} 33... Ke7 {[%clk 0:01:12.3]} 34. f4 {[%clk 0:00:43.1]} 34... f6
{[%clk 0:01:11]} 35. Qc2 {[%clk 0:00:15.5]} 35... Qa3 {[%clk 0:01:08.1]} 36. Nf3
{[%clk 0:00:13.8]} 36... Qe3 {[%clk 0:01:04.9]} 37. fxe5 {[%clk 0:00:11]} 37...
fxe5 {[%clk 0:00:51.4]} 38. c5 {[%clk 0:00:11.4]} 38... dxc5 {[%clk 0:00:51.3]}
39. Nxe5 {[%clk 0:00:10.9]} 39... Kf6 {[%clk 0:00:44.4]} 40. Nc4 {[%clk
0:00:09]} 40... Qd4 {[%clk 0:00:40.7]} 41. Nd2 {[%clk 0:00:09.2]} 41... c4
{[%clk 0:00:36.9]} 42. Nf3 {[%clk 0:00:07.8]} 42... Qe3 {[%clk 0:00:36.9]} 43.
e5+ {[%clk 0:00:08.3]} 43... Kf7 {[%clk 0:00:32.6]} 44. Qf2 {[%clk 0:00:07.6]}
44... Qe4 {[%clk 0:00:30.7]} 45. Kh2 {[%clk 0:00:05.6]} 45... Kg8 {[%clk
0:00:29.6]} 46. Ng5 {[%clk 0:00:05.2]} 46... Qxe5 {[%clk 0:00:29.8]} 47. Nxe6
{[%clk 0:00:05.9]} 47... Qxe6 {[%clk 0:00:30.7]} 48. Qd4 {[%clk 0:00:06.3]}
48... Qc6 {[%clk 0:00:28]} 49. Qd8+ {[%clk 0:00:05.9]} 49... Kh7 {[%clk
0:00:28]} 50. Qh4+ {[%clk 0:00:06.5]} 50... Qh6 {[%clk 0:00:28.2]} 0-1

[Event "Early-Titled-Tuesday-Blitz-January-16-2024"]
[Site "Chess.com"]
[Date "2024.01.16"]
[Round "3"]
[White "stasOR4ik"]
[Black "Dewarfd"]
[Result "1-0"]
[WhiteElo "2407"]
[BlackElo "2145"]
[TimeControl "180+1"]
[EndTime "8:29:32 PST"]
[Termination "stasOR4ik won on time"]

1. e4 {[%clk 0:03:00.9]} 1... c5 {[%clk 0:02:56.5]} 2. c3 {[%clk 0:03:00.8]}
2... g6 {[%clk 0:02:52.6]} 3. d4 {[%clk 0:03:00.8]} 3... cxd4 {[%clk 0:02:53.1]}
4. cxd4 {[%clk 0:03:01.4]} 4... Bg7 {[%clk 0:02:53.2]} 5. Nc3 {[%clk 0:02:58.6]}
5... Nc6 {[%clk 0:02:45.5]} 6. Nf3 {[%clk 0:02:54.6]} 6... d6 {[%clk 0:02:41.5]}
7. h3 {[%clk 0:02:51.1]} 7... Nf6 {[%clk 0:02:40.1]} 8. Bc4 {[%clk 0:02:50.7]}
8... O-O {[%clk 0:02:39.9]} 9. O-O {[%clk 0:02:50.6]} 9... Na5 {[%clk
0:02:37.7]} 10. Bd3 {[%clk 0:02:50.1]} 10... a6 {[%clk 0:02:37.1]} 11. e5 {[%clk
0:02:45.3]} 11... dxe5 {[%clk 0:02:34.5]} 12. dxe5 {[%clk 0:02:46.2]} 12... Nd5
{[%clk 0:02:27.9]} 13. Bxg6 {[%clk 0:02:15.2]} 13... Nxc3 {[%clk 0:02:18.4]} 14.
Bxh7+ {[%clk 0:02:14.7]} 14... Kxh7 {[%clk 0:02:01]} 15. Qc2+ {[%clk 0:02:13.7]}
15... Kg8 {[%clk 0:01:43.2]} 16. Ng5 {[%clk 0:02:13.2]} 16... f5 {[%clk
0:01:31.7]} 17. exf6 {[%clk 0:02:12.8]} 17... Rxf6 {[%clk 0:01:27.9]} 18. Qh7+
{[%clk 0:02:07.6]} 18... Kf8 {[%clk 0:01:27.5]} 19. bxc3 {[%clk 0:02:07.5]}
19... Bf5 {[%clk 0:01:26.9]} 20. Qxf5 {[%clk 0:01:49]} 20... Rxf5 {[%clk
0:01:24.8]} 21. Ne6+ {[%clk 0:01:49.4]} 21... Kf7 {[%clk 0:01:23.7]} 22. Nxd8+
{[%clk 0:01:48.6]} 22... Rxd8 {[%clk 0:01:24.6]} 23. Rb1 {[%clk 0:01:39.5]}
23... Bxc3 {[%clk 0:01:19]} 24. g4 {[%clk 0:01:38.2]} 24... Rf3 {[%clk
0:01:15.4]} 25. Kg2 {[%clk 0:01:38.4]} 25... Rfd3 {[%clk 0:01:01.9]} 26. f4
{[%clk 0:01:34.7]} 26... b5 {[%clk 0:00:52.4]} 27. h4 {[%clk 0:01:20.8]} 27...
Nc4 {[%clk 0:00:51.8]} 28. h5 {[%clk 0:01:14.3]} 28... Bd2 {[%clk 0:00:48.8]}
29. Rf3 {[%clk 0:01:08.9]} 29... Rxf3 {[%clk 0:00:35]} 30. Kxf3 {[%clk
0:01:08.7]} 30... Rd3+ {[%clk 0:00:33]} 31. Ke4 {[%clk 0:01:09]} 31... Re3+
{[%clk 0:00:24.8]} 32. Kf5 {[%clk 0:01:09.2]} 32... e6+ {[%clk 0:00:08.8]} 33.
Kg5 {[%clk 0:01:09.4]} 33... Re4 {[%clk 0:00:06.4]} 34. Bxd2 {[%clk 0:00:59.4]}
34... Nxd2 {[%clk 0:00:07.3]} 35. Rd1 {[%clk 0:00:51.7]} 35... Nf3+ {[%clk
0:00:07.4]} 36. Kh6 {[%clk 0:00:52.1]} 36... Rxf4 {[%clk 0:00:07.5]} 37. g5
{[%clk 0:00:49.3]} 37... Nh4 {[%clk 0:00:05.6]} 38. Rd7+ {[%clk 0:00:45.6]}
38... Ke8 {[%clk 0:00:05.8]} 39. Ra7 {[%clk 0:00:33.5]} 39... Ra4 {[%clk
0:00:03.7]} 40. g6 {[%clk 0:00:29.9]} 40... Nf5+ {[%clk 0:00:03.7]} 41. Kh7
{[%clk 0:00:30.1]} 41... b4 {[%clk 0:00:03.2]} 42. h6 {[%clk 0:00:21.7]} 42...
Rxa2 {[%clk 0:00:02.3]} 43. g7 {[%clk 0:00:21.8]} 43... Nxg7 {[%clk 0:00:02.3]}
44. hxg7 {[%clk 0:00:19.9]} 44... Rh2+ {[%clk 0:00:02.2]} 45. Kg6 {[%clk
0:00:20.1]} 1-0

[Event "Early-Titled-Tuesday-Blitz-January-16-2024"]
[Site "Chess.com"]
[Date "2024.01.16"]
[Round "3"]
[White "AldokhinIvan"]
[Black "Shivananda1964"]
[Result "1-0"]
[WhiteElo "2600"]
[BlackElo "2364"]
[TimeControl "180+1"]
[EndTime "8:29:33 PST"]
[Termination "AldokhinIvan won on time"]

1. e4 {[%clk 0:03:00.9]} 1... Nc6 {[%clk 0:02:58.1]} 2. Nf3 {[%clk 0:02:58.6]}
2... e5 {[%clk 0:02:56.4]} 3. Bb5 {[%clk 0:02:57.9]} 3... a6 {[%clk 0:02:56.3]}
4. Ba4 {[%clk 0:02:58.1]} 4... Nf6 {[%clk 0:02:56.3]} 5. O-O {[%clk 0:02:58.8]}
5... Be7 {[%clk 0:02:56.2]} 6. Re1 {[%clk 0:02:59.3]} 6... d6 {[%clk 0:02:56.3]}
7. Bxc6+ {[%clk 0:02:57.2]} 7... bxc6 {[%clk 0:02:54.9]} 8. d4 {[%clk
0:02:58.1]} 8... exd4 {[%clk 0:02:47.6]} 9. Nxd4 {[%clk 0:02:56.5]} 9... Bd7
{[%clk 0:02:46.7]} 10. Bf4 {[%clk 0:02:48.9]} 10... O-O {[%clk 0:02:41.4]} 11.
Nc3 {[%clk 0:02:33.1]} 11... g6 {[%clk 0:02:30]} 12. e5 {[%clk 0:02:21.8]} 12...
Nh5 {[%clk 0:02:29.4]} 13. Bh6 {[%clk 0:02:01.6]} 13... Re8 {[%clk 0:02:17.5]}
14. Qf3 {[%clk 0:02:00.2]} 14... dxe5 {[%clk 0:01:59.8]} 15. Nxc6 {[%clk
0:01:43.2]} 15... Bxc6 {[%clk 0:02:00.1]} 16. Qxc6 {[%clk 0:01:41.4]} 16... Qd6
{[%clk 0:01:58.8]} 17. Qf3 {[%clk 0:01:35.8]} 17... Rab8 {[%clk 0:01:23.7]} 18.
Rad1 {[%clk 0:01:33.5]} 18... Qf6 {[%clk 0:00:50.4]} 19. Qxf6 {[%clk 0:01:10.1]}
19... Bxf6 {[%clk 0:00:48.5]} 20. Nd5 {[%clk 0:00:54.6]} 20... Bd8 {[%clk
0:00:42.8]} 21. b3 {[%clk 0:00:46.5]} 21... f6 {[%clk 0:00:23.7]} 22. Re4 {[%clk
0:00:29.7]} 22... Kf7 {[%clk 0:00:19.6]} 23. Ra4 {[%clk 0:00:28.8]} 23... Re6
{[%clk 0:00:16.5]} 24. Be3 {[%clk 0:00:21.3]} 24... f5 {[%clk 0:00:06.5]} 25.
Nb4 {[%clk 0:00:15.8]} 25... Nf6 {[%clk 0:00:04.1]} 26. Nxa6 {[%clk 0:00:10.6]}
26... Ra8 {[%clk 0:00:04.4]} 27. Nc5 {[%clk 0:00:10.8]} 27... Rxa4 {[%clk
0:00:04.4]} 28. bxa4 {[%clk 0:00:11.1]} 28... Re8 {[%clk 0:00:04.3]} 29. a5
{[%clk 0:00:10.2]} 29... Be7 {[%clk 0:00:04.5]} 30. Rb1 {[%clk 0:00:06]} 30...
f4 {[%clk 0:00:04.7]} 31. Nd3 {[%clk 0:00:03.7]} 31... fxe3 {[%clk 0:00:04.7]}
32. Nxe5+ {[%clk 0:00:04.4]} 32... Ke6 {[%clk 0:00:04.4]} 33. Nc4 {[%clk
0:00:05.1]} 33... Ra8 {[%clk 0:00:04.4]} 34. fxe3 {[%clk 0:00:04.9]} 34... Nd5
{[%clk 0:00:04.8]} 35. Rb5 {[%clk 0:00:04.9]} 35... c6 {[%clk 0:00:04.2]} 36.
Rb7 {[%clk 0:00:05.2]} 36... Bc5 {[%clk 0:00:03.5]} 37. Kf2 {[%clk 0:00:05.4]}
37... Nb4 {[%clk 0:00:02.4]} 38. Ke2 {[%clk 0:00:03.8]} 38... Nxa2 {[%clk
0:00:02.2]} 39. Rc7 {[%clk 0:00:04.4]} 39... Nc3+ {[%clk 0:00:01.1]} 40. Kd3
{[%clk 0:00:03.8]} 1-0

[Event "Early-Titled-Tuesday-Blitz-January-16-2024"]
[Site "Chess.com"]
[Date "2024.01.16"]
[Round "3"]
[White "azikom"]
[Black "TrompeterImEther"]
[Result "1-0"]
[WhiteElo "2678"]
[BlackElo "2474"]
[TimeControl "180+1"]
[EndTime "8:29:34 PST"]
[Termination "azikom won by resignation"]

1. c4 {[%clk 0:02:46.2]} 1... e5 {[%clk 0:02:59.3]} 2. Nc3 {[%clk 0:02:40.1]}
2... Nf6 {[%clk 0:02:59.3]} 3. e3 {[%clk 0:02:39.2]} 3... Bb4 {[%clk 0:02:57.9]}
4. Nge2 {[%clk 0:02:38.6]} 4... O-O {[%clk 0:02:57.5]} 5. a3 {[%clk 0:02:38.7]}
5... Bxc3 {[%clk 0:02:55.5]} 6. Nxc3 {[%clk 0:02:38.4]} 6... d6 {[%clk
0:02:56.2]} 7. Be2 {[%clk 0:02:37.3]} 7... Nbd7 {[%clk 0:02:53.6]} 8. O-O {[%clk
0:02:38.2]} 8... Qe7 {[%clk 0:02:53.7]} 9. b4 {[%clk 0:02:37.6]} 9... Ne8 {[%clk
0:02:53.9]} 10. d4 {[%clk 0:02:36.8]} 10... c6 {[%clk 0:02:50.5]} 11. dxe5
{[%clk 0:02:35.8]} 11... dxe5 {[%clk 0:02:50.1]} 12. Bb2 {[%clk 0:02:36.1]}
12... f5 {[%clk 0:02:50.1]} 13. c5 {[%clk 0:02:36]} 13... Nef6 {[%clk
0:02:48.5]} 14. Qd2 {[%clk 0:02:30.5]} 14... e4 {[%clk 0:02:38.6]} 15. Rfd1
{[%clk 0:02:30.6]} 15... Ne5 {[%clk 0:02:38.6]} 16. Qd6 {[%clk 0:02:30.5]} 16...
Qxd6 {[%clk 0:02:24.2]} 17. Rxd6 {[%clk 0:02:29]} 17... Re8 {[%clk 0:02:23.2]}
18. Rad1 {[%clk 0:02:27.2]} 18... Bd7 {[%clk 0:02:21.8]} 19. h3 {[%clk
0:02:17.1]} 19... Rad8 {[%clk 0:02:20.1]} 20. Nb1 {[%clk 0:02:05.3]} 20... Re7
{[%clk 0:01:56.4]} 21. Nd2 {[%clk 0:01:53.1]} 21... Nd5 {[%clk 0:01:20.3]} 22.
Bxe5 {[%clk 0:01:34.5]} 22... Rxe5 {[%clk 0:01:19.6]} 23. Bc4 {[%clk 0:01:27.1]}
23... Kf8 {[%clk 0:01:14.8]} 24. Nb3 {[%clk 0:01:24]} 24... Nf6 {[%clk
0:01:10.6]} 25. Na5 {[%clk 0:01:23.3]} 25... Rb8 {[%clk 0:00:38.6]} 26. Rxd7
{[%clk 0:01:22.9]} 26... Nxd7 {[%clk 0:00:39.5]} 27. Rxd7 {[%clk 0:01:23.2]}
27... Re7 {[%clk 0:00:40]} 28. Rd6 {[%clk 0:01:23.1]} 28... g6 {[%clk
0:00:37.6]} 29. h4 {[%clk 0:01:21.7]} 29... Rc7 {[%clk 0:00:33.9]} 30. Kh2
{[%clk 0:01:19.6]} 30... Kg7 {[%clk 0:00:29.9]} 31. Kg3 {[%clk 0:01:18.9]} 31...
Re8 {[%clk 0:00:20.4]} 32. Nb3 {[%clk 0:01:14.9]} 32... Ree7 {[%clk 0:00:18.6]}
33. Nd4 {[%clk 0:01:13.5]} 33... Rcd7 {[%clk 0:00:19.1]} 34. Be6 {[%clk
0:00:50.9]} 34... Rxd6 {[%clk 0:00:19.4]} 35. cxd6 {[%clk 0:00:50.8]} 35... Re8
{[%clk 0:00:20.1]} 36. d7 {[%clk 0:00:49.9]} 36... Rd8 {[%clk 0:00:20.2]} 37.
Bxf5 {[%clk 0:00:49.3]} 37... Kf6 {[%clk 0:00:14.8]} 38. Bh3 {[%clk 0:00:48.7]}
38... Ke5 {[%clk 0:00:11.9]} 39. Nb3 {[%clk 0:00:37.7]} 39... b6 {[%clk
0:00:11.9]} 40. Nd4 {[%clk 0:00:37]} 40... Kd6 {[%clk 0:00:12.6]} 41. Kf4 {[%clk
0:00:36.7]} 41... c5 {[%clk 0:00:12.8]} 42. bxc5+ {[%clk 0:00:36.5]} 42... bxc5
{[%clk 0:00:13.7]} 43. Nb5+ {[%clk 0:00:35.7]} 43... Kc6 {[%clk 0:00:14.3]} 44.
Nc3 {[%clk 0:00:33.3]} 44... Kc7 {[%clk 0:00:09.3]} 45. Kxe4 {[%clk 0:00:33.1]}
45... Kd6 {[%clk 0:00:08.3]} 46. a4 {[%clk 0:00:31.6]} 46... a6 {[%clk
0:00:08.1]} 47. Kd3 {[%clk 0:00:31]} 47... Kc6 {[%clk 0:00:08.1]} 48. f4 {[%clk
0:00:30.7]} 48... Kd6 {[%clk 0:00:08.3]} 49. e4 {[%clk 0:00:30.7]} 49... Kc6
{[%clk 0:00:08.9]} 50. e5 {[%clk 0:00:30.9]} 50... Kc7 {[%clk 0:00:08.6]} 51. g3
{[%clk 0:00:31.1]} 51... h6 {[%clk 0:00:08.3]} 52. Kc4 {[%clk 0:00:30.8]} 52...
Kc6 {[%clk 0:00:08.3]} 53. Nd5 {[%clk 0:00:30.7]} 1-0

[Event "Early-Titled-Tuesday-Blitz-January-16-2024"]
[Site "Chess.com"]
[Date "2024.01.16"]
[Round "3"]
[White "sergeikim"]
[Black "leschebaza"]
[Result "1-0"]
[WhiteElo "2616"]
[BlackElo "2428"]
[TimeControl "180+1"]
[EndTime "8:29:35 PST"]
[Termination "sergeikim won by resignation"]

1. d4 {[%clk 0:03:00.5]} 1... Nf6 {[%clk 0:03:00.1]} 2. c4 {[%clk 0:03:00.5]}
2... e6 {[%clk 0:03:00.5]} 3. Nc3 {[%clk 0:03:00.5]} 3... d5 {[%clk 0:03:00.9]}
4. Nf3 {[%clk 0:02:59.6]} 4... Be7 {[%clk 0:03:00.9]} 5. Bf4 {[%clk 0:02:59.5]}
5... O-O {[%clk 0:03:00.6]} 6. e3 {[%clk 0:02:59.7]} 6... a6 {[%clk 0:02:53.1]}
7. c5 {[%clk 0:02:59.6]} 7... c6 {[%clk 0:02:38.1]} 8. h3 {[%clk 0:02:58.6]}
8... Nbd7 {[%clk 0:02:37.9]} 9. b4 {[%clk 0:02:53]} 9... Ne4 {[%clk 0:02:33.2]}
10. Nxe4 {[%clk 0:02:46.3]} 10... dxe4 {[%clk 0:02:34.1]} 11. Nd2 {[%clk
0:02:46.8]} 11... f5 {[%clk 0:02:17.8]} 12. Bc4 {[%clk 0:02:44.3]} 12... Nf6
{[%clk 0:02:18.2]} 13. Qb3 {[%clk 0:02:34.6]} 13... Nd5 {[%clk 0:02:17.4]} 14.
Bh2 {[%clk 0:02:31.8]} 14... Bd7 {[%clk 0:02:12.7]} 15. O-O {[%clk 0:02:29.5]}
15... Be8 {[%clk 0:02:08]} 16. a4 {[%clk 0:02:28]} 16... Bh5 {[%clk 0:01:38.6]}
17. Rfe1 {[%clk 0:02:02.5]} 17... Bh4 {[%clk 0:01:06.1]} 18. Be2 {[%clk
0:01:58.9]} 18... Bxe2 {[%clk 0:01:03.3]} 19. Rxe2 {[%clk 0:01:58.7]} 19... Rf6
{[%clk 0:00:57.9]} 20. Nc4 {[%clk 0:01:57.7]} 20... Rh6 {[%clk 0:00:50.2]} 21.
Nd6 {[%clk 0:01:44.7]} 21... Qe7 {[%clk 0:00:38.6]} 22. Be5 {[%clk 0:01:39.7]}
22... Bf6 {[%clk 0:00:36.6]} 23. Bg3 {[%clk 0:01:23]} 23... Kh8 {[%clk
0:00:34.3]} 24. Rf1 {[%clk 0:01:18.6]} 24... Rg8 {[%clk 0:00:32.6]} 25. Kh2
{[%clk 0:01:04.8]} 25... g5 {[%clk 0:00:25.7]} 26. Be5 {[%clk 0:01:02.5]} 26...
Bxe5+ {[%clk 0:00:25.2]} 27. dxe5 {[%clk 0:01:02.6]} 27... g4 {[%clk 0:00:25.3]}
28. b5 {[%clk 0:00:56.6]} 28... gxh3 {[%clk 0:00:18.4]} 29. g3 {[%clk
0:00:56.5]} 29... axb5 {[%clk 0:00:16.2]} 30. axb5 {[%clk 0:00:55.4]} 30... cxb5
{[%clk 0:00:17.1]} 31. Nxf5 {[%clk 0:00:53.8]} 31... exf5 {[%clk 0:00:16.3]} 32.
Qxd5 {[%clk 0:00:53.8]} 32... Qe6 {[%clk 0:00:16.4]} 33. Rd2 {[%clk 0:00:44.1]}
33... Qxd5 {[%clk 0:00:15.5]} 34. Rxd5 {[%clk 0:00:43.6]} 34... Rc8 {[%clk
0:00:16.2]} 35. Rb1 {[%clk 0:00:41]} 35... Re6 {[%clk 0:00:14.3]} 36. Rxb5
{[%clk 0:00:40.4]} 36... Rc7 {[%clk 0:00:14.9]} 37. Kxh3 {[%clk 0:00:39]} 37...
Kg7 {[%clk 0:00:15.5]} 38. Rb6 {[%clk 0:00:30.2]} 38... Kf7 {[%clk 0:00:13.6]}
39. Kh4 {[%clk 0:00:25.1]} 39... Ke7 {[%clk 0:00:10.2]} 40. Kg5 {[%clk
0:00:22.9]} 40... Rxb6 {[%clk 0:00:08.3]} 41. cxb6 {[%clk 0:00:22.5]} 41... Rc2
{[%clk 0:00:09.2]} 42. Kxf5 {[%clk 0:00:19.8]} 42... Rxf2+ {[%clk 0:00:09.9]}
43. Kxe4 {[%clk 0:00:19.8]} 43... Rg2 {[%clk 0:00:10.5]} 44. Rc5 {[%clk
0:00:19.2]} 44... Rb2 {[%clk 0:00:11.4]} 45. Rc7+ {[%clk 0:00:18.8]} 45... Ke6
{[%clk 0:00:12.1]} 46. Rxb7 {[%clk 0:00:18.6]} 46... h5 {[%clk 0:00:11.2]} 47.
Rb8 {[%clk 0:00:17]} 47... Rb4+ {[%clk 0:00:11.6]} 48. Kf3 {[%clk 0:00:16.6]}
48... Kxe5 {[%clk 0:00:12.5]} 49. b7 {[%clk 0:00:16.6]} 49... Rxb7 {[%clk
0:00:10.4]} 50. Rxb7 {[%clk 0:00:16.5]} 1-0

[Event "Early-Titled-Tuesday-Blitz-January-16-2024"]
[Site "Chess.com"]
[Date "2024.01.16"]
[Round "3"]
[White "JiaHaoxiang"]
[Black "Zheenbekov86"]
[Result "0-1"]
[WhiteElo "2610"]
[BlackElo "2462"]
[TimeControl "180+1"]
[EndTime "8:29:36 PST"]
[Termination "Zheenbekov86 won by resignation"]

1. d4 {[%clk 0:03:00.9]} 1... d5 {[%clk 0:02:51.1]} 2. Nf3 {[%clk 0:03:00.7]}
2... Nf6 {[%clk 0:02:50.4]} 3. Bf4 {[%clk 0:03:00.9]} 3... c6 {[%clk 0:02:47.2]}
4. e3 {[%clk 0:03:00.7]} 4... Bf5 {[%clk 0:02:40.8]} 5. c4 {[%clk 0:03:00.1]}
5... e6 {[%clk 0:02:40.6]} 6. Nc3 {[%clk 0:02:55.8]} 6... Bd6 {[%clk 0:02:35.1]}
7. Qb3 {[%clk 0:02:55.1]} 7... Bxf4 {[%clk 0:02:29.3]} 8. Qxb7 {[%clk
0:02:33.6]} 8... Qc7 {[%clk 0:02:29]} 9. Qxa8 {[%clk 0:02:33.2]} 9... O-O {[%clk
0:02:28.6]} 10. exf4 {[%clk 0:02:28.4]} 10... Nbd7 {[%clk 0:02:28.2]} 11. Qxf8+
{[%clk 0:02:27.4]} 11... Nxf8 {[%clk 0:02:21.3]} 12. Be2 {[%clk 0:02:13.7]}
12... Qxf4 {[%clk 0:02:20.7]} 13. O-O {[%clk 0:02:14]} 13... h6 {[%clk
0:02:19.8]} 14. cxd5 {[%clk 0:02:07.9]} 14... exd5 {[%clk 0:02:12.2]} 15. g3
{[%clk 0:02:06.1]} 15... Qd6 {[%clk 0:02:06.5]} 16. Rac1 {[%clk 0:02:01.7]}
16... N8d7 {[%clk 0:02:01.9]} 17. Rfe1 {[%clk 0:01:58.5]} 17... Ne4 {[%clk
0:01:57.1]} 18. Nxe4 {[%clk 0:01:40.8]} 18... dxe4 {[%clk 0:01:56.7]} 19. Nh4
{[%clk 0:01:40.7]} 19... Be6 {[%clk 0:01:56.6]} 20. b3 {[%clk 0:01:40.4]} 20...
Qxd4 {[%clk 0:01:55.7]} 21. Red1 {[%clk 0:01:33.4]} 21... Qb2 {[%clk 0:01:53]}
22. Bf1 {[%clk 0:01:24.7]} 22... Qxa2 {[%clk 0:01:47.5]} 23. b4 {[%clk 0:01:25]}
23... Qb3 {[%clk 0:01:38.3]} 24. Rd4 {[%clk 0:01:20.7]} 24... e3 {[%clk
0:01:36.1]} 25. Rxc6 {[%clk 0:01:05.5]} 25... exf2+ {[%clk 0:01:32.5]} 26. Kxf2
{[%clk 0:01:04.3]} 26... Ne5 {[%clk 0:01:23.4]} 27. Rcd6 {[%clk 0:00:57.4]}
27... Ng4+ {[%clk 0:01:10.3]} 28. Kg2 {[%clk 0:00:29.5]} 28... Ne3+ {[%clk
0:00:49]} 29. Kf2 {[%clk 0:00:29.3]} 29... Ng4+ {[%clk 0:00:44.8]} 30. Kg2
{[%clk 0:00:29.4]} 30... Qc2+ {[%clk 0:00:38.4]} 31. Rd2 {[%clk 0:00:29.2]}
31... Qe4+ {[%clk 0:00:37.6]} 32. Kg1 {[%clk 0:00:19.9]} 32... Qxb4 {[%clk
0:00:27.9]} 33. h3 {[%clk 0:00:18.6]} 33... Ne3 {[%clk 0:00:21.5]} 34. Rd8+
{[%clk 0:00:17.9]} 34... Kh7 {[%clk 0:00:21.1]} 35. Bd3+ {[%clk 0:00:18.1]}
35... g6 {[%clk 0:00:21.2]} 36. Bf1 {[%clk 0:00:17]} 36... Qc5 {[%clk
0:00:17.4]} 37. R8d4 {[%clk 0:00:11.9]} 37... Nc2 {[%clk 0:00:16]} 38. Rxc2
{[%clk 0:00:12.1]} 38... Qxd4+ {[%clk 0:00:15.6]} 39. Rf2 {[%clk 0:00:13]} 39...
a5 {[%clk 0:00:15.5]} 40. Nf3 {[%clk 0:00:13.1]} 40... Qc5 {[%clk 0:00:14.9]}
41. Kg2 {[%clk 0:00:13.2]} 41... Bd5 {[%clk 0:00:14.2]} 42. Kh2 {[%clk
0:00:12.9]} 42... Qxf2+ {[%clk 0:00:13.1]} 0-1